bitfinex/quotes_SOLUSD_20250415
["timestamp","ask_amount","ask_price","bid_price","bid_amount"]
[1744719312357,101.3292415,132.81,132.76,19.7315415]
[1744719314478,101.3292415,132.81,132.77,12.1996415]
[1744719314678,12.1996415,132.78,132.73,0.063]
[1744719314977,12.1996415,132.75,132.73,0.063]
[1744719315567,91.98,132.77,132.73,0.063]
[1744719315568,104.1796415,132.77,132.73,0.063]
[1744719315766,12.1996415,132.76,132.73,0.063]
[1744719317783,12.1996415,132.75,132.73,0.063]
[1744719317960,19.7319415,132.76,132.73,0.063]
[1744719318586,10.38,132.77,132.73,12.2626415]
[1744719318768,22.5796415,132.77,132.73,0.063]
[1744719318961,12.1996415,132.76,132.73,0.063]
[1744719320286,19.7320415,132.76,132.73,0.063]
[1744719320461,12.1996415,132.75,132.73,0.063]
[1744719320860,93.7996415,132.75,132.73,0.063]
[1744719322684,101.3325415,132.75,132.73,0.063]
[1744719323681,19.7325415,132.75,132.73,0.063]
[1744719324384,19.7322415,132.76,132.73,0.063]
[1744719325391,19.7325415,132.75,132.73,0.063]
[1744719328287,12.1996415,132.75,132.73,0.063]
[1744719328468,19.7322415,132.76,132.73,0.063]
[1744719328881,91.98,132.77,132.73,12.2626415]
[1744719329083,91.98,132.77,132.74,12.2626415]
[1744719329791,91.98,132.77,132.74,0.063]
[1744719329792,111.7115415,132.77,132.74,0.063]
[1744719330186,99.5119,132.77,132.74,0.063]
[1744719330393,10.38,132.77,132.74,0.063]
[1744719330693,17.9118,132.77,132.74,0.063]
[1744719331201,12.1996415,132.75,132.74,0.063]
[1744719331573,19.7320415,132.76,132.74,0.063]
[1744719332689,7.5324,132.76,132.74,0.063]
[1744719332888,19.7320415,132.76,132.74,0.063]
[1744719333389,12.1996415,132.75,132.74,0.063]
[1744719333970,19.7325415,132.75,132.74,0.063]
[1744719334390,12.1996415,132.75,132.74,0.063]
[1744719334597,19.7325415,132.75,132.74,0.063]
[1744719337289,81.6,132.76,132.74,0.063]
[1744719337489,30.1118415,132.77,132.74,0.063]
[1744719338198,81.6,132.78,132.74,12.2626415]
[1744719338403,10.38,132.77,132.75,12.1996415]
[1744719339277,10.38,132.77,132.75,15.3600228]
[1744719339599,10.38,132.77,132.76,7.8271228]
[1744719339819,10.38,132.77,132.75,15.3600228]
[1744719340492,10.38,132.77,132.74,0.063]
[1744719340679,25.7389228,132.77,132.74,0.063]
[1744719340876,10.38,132.77,132.74,7.8901228]
[1744719341280,10.38,132.77,132.74,19.82840078]
[1744719342003,10.38,132.77,132.75,12.23200078]
[1744719342306,10.38,132.77,132.76,12.23200078]
[1744719342499,10.38,132.77,132.75,12.23200078]
[1744719342818,10.38,132.77,132.76,12.23200078]
[1744719343314,10.38,132.83,132.8,7.5301]
[1744719343612,10.38,132.83,132.82,12.23200078]
[1744719350323,10.38,132.83,132.82,19.76090078]
[1744719351106,10.38,132.83,132.82,38.41054964]
[1744719351933,10.38,132.83,132.81,21.31990078]
[1744719352229,10.38,132.83,132.81,12.23200078]
[1744719352427,10.38,132.83,132.81,19.76130078]
[1744719353629,10.38,132.83,132.82,12.23200078]
[1744719353930,10.38,132.83,132.81,12.23200078]
[1744719354728,10.38,132.83,132.82,12.23200078]
[1744719355326,10.38,132.83,132.82,19.76090078]
[1744719355622,10.38,132.83,132.82,38.41054964]
[1744719357723,0.063,132.86,132.82,38.41054964]
[1744719357922,0.063,132.86,132.85,12.23200078]
[1744719358123,0.063,132.86,132.84,12.23200078]
[1744719358631,0.063,132.86,132.85,12.23200078]
[1744719359518,0.063,132.86,132.85,30.88164964]
[1744719359826,0.063,132.86,132.85,12.23200078]
[1744719360227,0.063,132.86,132.84,19.75960078]
[1744719360614,0.063,132.86,132.85,12.23200078]
[1744719361016,0.063,132.86,132.85,30.88164964]
[1744719361410,0.063,132.86,132.85,56.88164964]
[1744719361812,0.063,132.86,132.85,64.40884964]
[1744719365048,0.063,132.86,132.8,18.8249]
[1744719365217,12.23200078,132.81,132.76,13.79170078]
[1744719365424,12.23200078,132.8,132.75,19.76490078]
[1744719365739,22.61200078,132.81,132.76,38.23200078]
[1744719365953,22.61200078,132.81,132.76,12.23200078]
[1744719366243,19.76230078,132.8,132.76,26.0]
[1744719366451,19.76230078,132.8,132.75,19.76490078]
[1744719367225,12.23200078,132.79,132.74,38.47784964]
[1744719367743,7.5303,132.8,132.75,12.23200078]
[1744719367921,19.76230078,132.8,132.75,12.23200078]
[1744719368346,19.76230078,132.8,132.75,19.76490078]
[1744719369040,19.76230078,132.8,132.75,12.23200078]
[1744719369341,12.23200078,132.78,132.74,33.5964]
[1744719369551,13.7418,132.8,132.74,45.82840078]
[1744719369738,12.23200078,132.79,132.74,45.82840078]
[1744719370122,19.76290078,132.79,132.74,45.82840078]
[1744719370431,12.23200078,132.78,132.74,45.82840078]
[1744719370846,12.23200078,132.79,132.74,45.82840078]
[1744719371134,19.76290078,132.79,132.74,45.82840078]
[1744719372546,18.44350078,132.8,132.75,12.23200078]
[1744719372738,22.61200078,132.81,132.76,12.23200078]
[1744719373546,10.38,132.81,132.77,12.23200078]
[1744719373742,12.23200078,132.8,132.75,12.23200078]
[1744719373944,10.38,132.81,132.74,33.5964]
[1744719373945,12.23200078,132.77,132.74,26.063]
[1744719374249,12.23200078,132.75,132.74,0.063]
[1744719374646,19.76490078,132.75,132.74,0.063]
[1744719380054,12.23200078,132.75,132.74,0.063]
[1744719380256,10.38,132.76,132.74,0.063]
[1744719381439,22.61200078,132.76,132.74,0.063]
[1744719381732,10.38,132.76,132.74,0.063]
[1744719381937,17.9125,132.76,132.74,0.063]
[1744719382171,10.38,132.76,132.74,0.063]
[1744719382644,17.9124,132.76,132.74,0.063]
[1744719382958,10.38,132.76,132.74,0.063]
[1744719384337,22.61200078,132.76,132.74,0.063]
[1744719385039,30.14440078,132.76,132.74,0.063]
[1744719385431,22.61200078,132.76,132.74,0.063]
[1744719385742,30.14450078,132.76,132.74,0.063]
[1744719386264,12.23200078,132.75,132.74,0.063]
[1744719386468,22.61200078,132.76,132.74,0.063]
[1744719386760,30.14440078,132.76,132.74,0.063]
[1744719388360,22.61200078,132.76,132.74,0.063]
[1744719388538,10.38,132.76,132.74,0.063]
[1744719388866,10.38,132.76,132.74,12.29500078]
[1744719389060,10.38,132.76,132.74,0.063]
[1744719389266,22.61200078,132.76,132.74,0.063]
[1744719389451,12.23200078,132.75,132.74,0.063]
[1744719390164,19.76490078,132.75,132.74,0.063]
[1744719390666,7.5329,132.75,132.74,0.063]
[1744719391257,30.14460078,132.76,132.74,0.063]
[1744719391452,10.38,132.76,132.74,0.063]
[1744719391965,17.9124,132.76,132.74,0.063]
[1744719392669,10.38,132.76,132.74,12.29500078]
[1744719392967,10.38,132.76,132.75,12.23200078]
[1744719393334,10.38,132.76,132.74,12.29500078]
[1744719393540,10.38,132.76,132.74,0.063]
[1744719394869,30.14460078,132.76,132.74,0.063]
[1744719396065,30.14460078,132.76,132.74,0.063]
[1744719396871,12.23200078,132.75,132.74,0.063]
[1744719399144,19.76490078,132.75,132.74,0.063]
[1744719401666,101.36490078,132.75,132.74,0.063]
[1744719404174,101.36490078,132.75,132.73,0.063]
[1744719404473,12.23200078,132.74,132.73,0.063]
[1744719406354,19.76550078,132.74,132.73,0.063]
[1744719406756,19.76550078,132.74,132.73,0.0001]
[1744719407161,38.41514964,132.74,132.73,0.0001]
[1744719408675,19.76550078,132.74,132.73,0.0001]
[1744719416171,1.5104,132.73,132.72,0.0001]
[1744719416359,50.80735042,132.73,132.72,0.0001]
[1744719417967,19.76600078,132.73,132.72,0.0001]
[1744719420659,50.64765042,132.73,132.72,0.0001]
[1744719420861,26.0,132.71,132.7,25.063]
[1744719421080,48.61200078,132.71,132.7,25.063]
[1744719422271,56.14720078,132.71,132.7,25.063]
[1744719424184,19.64964886,132.7,132.68,0.063]
[1744719424383,26.0,132.65,132.62,0.03]
[1744719424584,12.23200078,132.63,132.62,0.03]
[1744719424886,12.23200078,132.63,132.6,0.03]
[1744719425088,12.23200078,132.61,132.6,0.03]
[1744719426187,19.77290078,132.61,132.6,0.03]
[1744719428290,93.83200078,132.62,132.6,0.03]
[1744719428687,101.37240078,132.62,132.6,0.03]
[1744719428892,12.23200078,132.61,132.6,0.03]
[1744719430487,19.77290078,132.61,132.6,0.03]
[1744719433187,38.42254964,132.61,132.59,0.03]
[1744719433392,12.23200078,132.6,132.59,0.03]
[1744719434285,38.62700078,132.6,132.54,1.6245]
[1744719434476,12.23200078,132.56,132.54,1.6245]
[1744719435591,12.23200078,132.55,132.51,26.0]
[1744719435784,10.38,132.54,132.51,33.5465]
[1744719436174,10.38,132.54,132.51,26.0]
[1744719436375,12.23200078,132.52,132.47,9.1451]
[1744719436594,12.23200078,132.51,132.47,35.1451]
[1744719436782,12.23200078,132.52,132.47,47.37710078]
[1744719437177,12.23200078,132.51,132.47,1.5966]
[1744719438095,12.23200078,132.49,132.47,1.5966]
[1744719438393,10.38,132.48,132.47,1.5966]
[1744719439297,10.38,132.48,132.47,9.1454]
[1744719439801,10.38,132.48,132.47,1.5966]
[1744719441196,30.16030078,132.48,132.46,0.03]
[1744719441384,22.61200078,132.48,132.46,0.03]
[1744719442227,10.38,132.48,132.46,0.03]
[1744719442413,12.23200078,132.47,132.46,0.03]
[1744719443990,18.64964886,132.46,132.4,0.03]
[1744719444180,30.88164964,132.41,132.4,0.03]
[1744719444504,30.16420078,132.41,132.4,0.03]
[1744719451205,26.0,132.38,132.32,1.6125]
[1744719451509,12.23200078,132.34,132.32,1.6125]
[1744719451687,22.63200078,132.34,132.32,1.6125]
[1744719451889,10.4,132.34,132.33,12.23200078]
[1744719452606,10.4,132.34,132.32,13.84450078]
[1744719452920,10.4,132.34,132.32,21.40170078]
[1744719454606,10.4,132.34,132.32,1.6125]
[1744719455402,22.63200078,132.34,132.32,0.03]
[1744719456409,10.4,132.34,132.32,0.03]
[1744719457008,12.23200078,132.33,132.32,0.03]
[1744719457314,30.18830078,132.34,132.32,0.03]
[1744719457694,10.4,132.34,132.32,12.26200078]
[1744719458013,10.4,132.34,132.32,0.03]
[1744719458515,17.9564,132.34,132.32,0.03]
[1744719458712,30.18840078,132.34,132.32,0.03]
[1744719458901,10.4,132.34,132.32,0.03]
[1744719459107,30.18840078,132.34,132.32,0.03]
[1744719460503,12.23200078,132.33,132.32,0.03]
[1744719461517,43.9564,132.34,132.32,0.03]
[1744719461710,12.23200078,132.33,132.32,0.03]
[1744719462498,19.78880078,132.33,132.32,0.03]
[1744719465430,7.5568,132.33,132.32,0.03]
[1744719465607,19.78880078,132.33,132.32,0.03]
[1744719468413,57.33054964,132.33,132.28,2.5807462]
[1744719468611,12.23200078,132.29,132.28,2.5807462]
[1744719468813,17.9591,132.29,132.28,2.5807462]
[1744719469230,10.4,132.29,132.28,2.5807462]
[1744719469932,17.9591,132.29,132.28,2.5807462]
[1744719470116,10.4,132.29,132.28,2.5807462]
[1744719470317,17.9591,132.29,132.28,2.5807462]
[1744719470714,10.4,132.29,132.28,2.5807462]
[1744719471525,10.4,132.34,132.29,18.64964886]
[1744719471706,10.4,132.38,132.34,1.5979]
[1744719471906,10.4,132.38,132.37,12.23200078]
[1744719472127,40.4,132.38,132.37,12.23200078]
[1744719472330,10.4,132.38,132.37,12.23200078]
[1744719472521,10.4,132.38,132.34,1.5979]
[1744719472720,10.4,132.38,132.36,12.23200078]
[1744719474421,10.4,132.38,132.34,9.1538]
[1744719474422,38.23200078,132.42,132.37,12.23200078]
[1744719474611,38.23200078,132.42,132.36,12.23200078]
[1744719474612,30.18450078,132.41,132.36,12.23200078]
[1744719477134,12.23200078,132.4,132.36,12.23200078]
[1744719477321,30.18450078,132.41,132.36,12.23200078]
[1744719478434,30.18450078,132.41,132.36,19.78710078]
[1744719478634,30.18450078,132.41,132.36,12.23200078]
[1744719479019,10.4,132.41,132.37,12.23200078]
[1744719479218,10.4,132.41,132.38,12.23200078]
[1744719479526,10.4,132.41,132.39,12.23200078]
[1744719479721,10.4,132.41,132.4,12.23200078]
[1744719479923,10.4,132.42,132.39,12.23200078]
[1744719480133,10.4,132.42,132.38,12.23200078]
[1744719480513,10.4,132.42,132.39,12.23200078]
[1744719481243,17.9517,132.42,132.39,12.23200078]
[1744719481451,30.18370078,132.42,132.38,12.23200078]
[1744719481609,12.23200078,132.4,132.36,26.0]
[1744719481815,12.23200078,132.4,132.36,38.23200078]
[1744719482023,12.23200078,132.41,132.36,38.23200078]
[1744719482434,30.18370078,132.42,132.37,12.23200078]
[1744719482622,17.9517,132.42,132.36,26.0]
[1744719482821,30.18370078,132.42,132.37,12.23200078]
[1744719483945,30.18370078,132.42,132.38,12.23200078]
[1744719485028,30.18370078,132.42,132.37,12.23200078]
[1744719485233,12.23200078,132.4,132.36,12.23200078]
[1744719485436,19.78560078,132.39,132.34,21.38590078]
[1744719485730,19.78560078,132.39,132.35,12.23200078]
[1744719486130,110.8793,132.42,132.35,12.23200078]
[1744719486131,10.4,132.42,132.38,12.23200078]
[1744719486331,10.4,132.42,132.41,12.23200078]
[1744719486723,10.4,132.42,132.4,1.5695]
[1744719486914,10.4,132.42,132.4,13.80150078]
[1744719487638,10.4,132.42,132.41,12.23200078]
[1744719489244,10.4,132.42,132.4,9.1223]
[1744719489426,10.4,132.42,132.41,12.23200078]
[1744719489739,10.4,132.42,132.39,12.23200078]
[1744719490135,30.18390078,132.42,132.37,12.23200078]
[1744719490434,12.23200078,132.4,132.36,1.5907]
[1744719491120,12.23200078,132.41,132.36,13.82270078]
[1744719491817,19.78480078,132.4,132.36,13.82270078]
[1744719492220,7.5524,132.41,132.37,12.23200078]
[1744719492620,17.952,132.42,132.38,12.23200078]
[1744719493820,12.23200078,132.41,132.37,12.23200078]
[1744719494021,12.23200078,132.41,132.36,32.47234964]
[1744719494747,22.63200078,132.41,132.36,32.47234964]
[1744719494930,22.63200078,132.41,132.37,12.23200078]
[1744719495130,10.4,132.41,132.37,12.23200078]
[1744719496441,17.9525,132.41,132.37,12.23200078]
[1744719496620,17.9525,132.41,132.37,19.78650078]
[1744719496821,10.4,132.41,132.38,12.23200078]
[1744719497537,10.4,132.41,132.39,12.23200078]
[1744719497736,10.4,132.41,132.4,12.23200078]
[1744719498323,10.4,132.41,132.4,30.88164964]
[1744719498632,10.4,132.46,132.4,38.43444964]
[1744719498833,10.4,132.46,132.43,12.23200078]
[1744719499029,10.4,132.46,132.44,12.23200078]
[1744719500733,10.4,132.46,132.45,12.23200078]
[1744719502419,10.4,132.46,132.44,12.23200078]
[1744719504047,10.4,132.46,132.45,12.23200078]
[1744719504428,10.4,132.46,132.45,38.43164964]
[1744719504622,0.063,132.47,132.45,38.43164964]
[1744719504823,0.063,132.47,132.46,12.23200078]
[1744719505224,0.063,132.47,132.46,30.88164964]
[1744719506540,0.063,132.47,132.46,12.23200078]
[1744719506943,0.063,132.47,132.46,30.88164964]
[1744719507947,0.063,132.47,132.46,38.43104964]
[1744719508744,0.063,132.47,132.46,12.23200078]
[1744719508932,0.063,132.47,132.44,12.23200078]
[1744719509541,12.29500078,132.47,132.42,1.6103]
[1744719509735,12.23200078,132.46,132.41,12.23200078]
[1744719509941,17.9302,132.45,132.41,30.88164964]
[1744719510142,17.9302,132.45,132.42,12.23200078]
[1744719510453,17.9302,132.45,132.41,30.88164964]
[1744719510748,17.9302,132.45,132.41,38.43384964]
[1744719510955,10.38,132.45,132.41,38.43384964]
[1744719511160,10.38,132.45,132.42,12.23200078]
[1744719511466,17.93,132.45,132.41,12.23200078]
[1744719511634,17.93,132.45,132.38,20.18164886]
[1744719511635,12.23200078,132.42,132.38,20.18164886]
[1744719511945,19.78380078,132.42,132.38,18.64964886]
[1744719512150,7.5518,132.42,132.38,30.88164964]
[1744719512351,7.5518,132.42,132.38,38.43564964]
[1744719512555,7.5518,132.42,132.39,12.23200078]
[1744719513064,12.23200078,132.44,132.39,12.23200078]
[1744719513236,12.23200078,132.43,132.35,1.532]
[1744719513442,12.23200078,132.4,132.35,13.76400078]
[1744719513735,10.38,132.4,132.37,12.23200078]
[1744719514131,10.38,132.4,132.36,12.23200078]
[1744719514733,10.38,132.4,132.34,18.64964886]
[1744719514734,12.23200078,132.38,132.34,18.64964886]
[1744719514940,12.23200078,132.38,132.34,30.88164964]
[1744719515164,12.23200078,132.39,132.34,30.88164964]
[1744719515536,12.23200078,132.38,132.33,38.23200078]
[1744719515739,12.23200078,132.37,132.32,12.23200078]
[1744719516340,7.555,132.37,132.33,12.23200078]
[1744719516858,19.78700078,132.37,132.32,18.64964886]
[1744719517040,19.78700078,132.37,132.32,30.88164964]
[1744719517566,12.23200078,132.34,132.28,4.1323462]
[1744719517740,22.63200078,132.34,132.29,12.23200078]
[1744719517946,10.4,132.34,132.3,12.23200078]
[1744719518141,10.4,132.34,132.32,12.23200078]
[1744719518361,10.4,132.34,132.33,12.23200078]
[1744719518571,10.4,132.34,132.33,30.88164964]
[1744719519458,10.4,132.34,132.33,38.43844964]
[1744719519647,10.4,132.34,132.33,30.88164964]
[1744719521182,10.4,132.34,132.33,38.34147049]
[1744719521382,10.4,132.34,132.33,45.89827049]
[1744719521658,99.5542,132.38,132.33,45.89827049]
[1744719521857,10.4,132.38,132.35,19.69182163]
[1744719522066,10.4,132.38,132.36,19.69182163]
[1744719523066,10.4,132.38,132.37,38.34147049]
[1744719523463,10.4,132.38,132.35,1.6353]
[1744719523767,10.4,132.38,132.36,19.69182163]
[1744719524361,10.4,132.38,132.35,21.32712163]
[1744719524865,10.4,132.38,132.36,19.69182163]
[1744719525277,10.4,132.38,132.37,19.69182163]
[1744719527675,10.4,132.38,132.36,19.69182163]
[1744719528771,10.4,132.38,132.35,18.64964886]
[1744719528971,17.9542,132.38,132.34,45.69182163]
[1744719529160,37.64602163,132.38,132.33,27.24852163]
[1744719529669,19.69182163,132.37,132.33,19.69182163]
[1744719529867,19.69182163,132.37,132.32,26.0]
[1744719530066,19.69182163,132.37,132.32,53.24902163]
[1744719530264,19.69182163,132.37,132.32,27.24902163]
[1744719530452,27.24642163,132.37,132.33,19.69182163]
[1744719531478,37.64602163,132.38,132.33,27.24862163]
[1744719531977,19.69182163,132.37,132.33,19.69182163]
[1744719532154,19.69182163,132.37,132.32,26.20674886]
[1744719532476,17.9542,132.38,132.34,19.69182163]
[1744719532862,37.64602163,132.38,132.33,27.24842163]
[1744719533273,10.4,132.38,132.33,27.24842163]
[1744719533462,10.4,132.38,132.35,19.69182163]
[1744719534160,37.64582163,132.38,132.34,38.34147049]
[1744719534472,37.64582163,132.38,132.33,27.24842163]
[1744719534978,37.64582163,132.38,132.34,19.69182163]
[1744719535179,17.954,132.38,132.34,19.69182163]
[1744719535478,37.64582163,132.38,132.34,19.69182163]
[1744719536283,10.4,132.38,132.34,27.24792163]
[1744719537373,17.954,132.38,132.34,27.24792163]
[1744719538270,10.4,132.38,132.35,19.69182163]
[1744719538451,10.4,132.38,132.34,27.24792163]
[1744719539677,17.9541,132.38,132.34,27.24792163]
[1744719540176,37.64592163,132.38,132.33,19.69182163]
[1744719540963,39.18292163,132.38,132.33,19.69182163]
[1744719541164,19.4911,132.38,132.33,27.24862163]
[1744719541484,39.18292163,132.38,132.33,19.69182163]
[1744719543176,31.79891165,132.38,132.33,12.30781165]
[1744719543386,19.4911,132.38,132.34,12.30781165]
[1744719543757,10.4,132.38,132.34,12.30781165]
[1744719543961,10.4,132.38,132.35,12.30781165]
[1744719544159,10.4,132.42,132.38,18.64964886]
[1744719544380,10.4,132.42,132.41,12.30781165]
[1744719544684,10.4,132.42,132.41,30.95746051]
[1744719545079,0.063,132.44,132.41,30.95746051]
[1744719545382,0.063,132.44,132.43,12.30781165]
[1744719545764,0.063,132.44,132.42,12.30781165]
[1744719546074,0.063,132.44,132.41,12.30781165]
[1744719547957,0.063,132.44,132.39,7.5532]
[1744719548162,12.30781165,132.43,132.37,18.64964886]
[1744719548371,0.063,132.44,132.38,12.30781165]
[1744719548557,12.30781165,132.42,132.38,12.30781165]
[1744719548758,22.70781165,132.41,132.37,12.30781165]
[1744719548963,22.70781165,132.41,132.35,12.30781165]
[1744719548964,12.30781165,132.39,132.35,12.30781165]
[1744719549167,12.30781165,132.39,132.33,7.5567]
[1744719549168,12.30781165,132.38,132.33,19.86451165]
[1744719549366,12.30781165,132.38,132.33,45.86451165]
[1744719549576,12.30781165,132.39,132.34,12.30781165]
[1744719550367,7.554,132.38,132.34,12.30781165]
[1744719550772,12.30781165,132.4,132.35,12.30781165]
[1744719552381,19.86101165,132.4,132.35,12.30781165]
[1744719552555,19.86101165,132.4,132.35,19.86341165]
[1744719552875,12.30781165,132.4,132.35,19.86341165]
[1744719553089,10.4,132.41,132.39,12.30781165]
[1744719553269,10.4,132.41,132.4,12.30781165]
[1744719553474,10.4,132.41,132.4,30.95746051]
[1744719554887,10.4,132.41,132.4,38.51026051]
[1744719555190,10.4,132.41,132.39,45.67482388]
[1744719555369,10.4,132.41,132.38,53.22862388]
[1744719555985,10.4,132.41,132.39,19.67482388]
[1744719556896,10.4,132.41,132.4,19.67482388]
[1744719557698,10.4,132.41,132.4,27.22762388]
[1744719558066,0.063,132.44,132.41,18.64964886]
[1744719558265,0.063,132.44,132.43,19.67482388]
[1744719558666,0.063,132.44,132.42,19.67482388]
[1744719558993,0.063,132.44,132.43,64.32447274]
[1744719559283,0.063,132.44,132.43,57.99929662]
[1744719560780,0.063,132.44,132.43,83.99929662]
[1744719560963,0.063,132.44,132.43,91.55039662]
[1744719561662,0.063,132.47,132.46,26.0]
[1744719561859,0.063,132.47,132.46,45.67482388]
[1744719562990,0.063,132.47,132.46,33.5494]
[1744719563168,0.063,132.47,132.46,18.64964886]
[1744719563364,0.063,132.47,132.41,20.4285]
[1744719563572,19.67482388,132.46,132.42,7.5517]
[1744719563870,19.67482388,132.44,132.39,19.67482388]
[1744719564071,30.05482388,132.43,132.39,19.67482388]
[1744719564569,10.38,132.43,132.4,19.67482388]
[1744719564989,10.38,132.43,132.4,27.22742388]
[1744719565894,10.38,132.43,132.41,19.67482388]
[1744719567997,10.38,132.43,132.4,27.22742388]
[1744719568191,30.05482388,132.43,132.38,64.32447274]
[1744719568993,10.38,132.43,132.39,19.67482388]
[1744719569293,10.38,132.43,132.39,27.22782388]
[1744719570188,10.38,132.43,132.4,19.67482388]
[1744719570687,37.60622388,132.43,132.38,45.67482388]
[1744719570993,37.60622388,132.43,132.39,19.67482388]
[1744719570994,17.9314,132.43,132.39,19.67482388]
[1744719571194,10.38,132.43,132.4,19.67482388]
[1744719571378,10.38,132.43,132.4,27.22742388]
[1744719572095,10.38,132.43,132.41,19.67482388]
[1744719574100,10.38,132.43,132.41,27.22702388]
[1744719575305,10.38,132.43,132.41,19.67482388]
[1744719575702,10.38,132.43,132.41,27.22702388]
[1744719576581,10.38,132.43,132.41,19.67482388]
[1744719576781,30.05482388,132.43,132.39,26.20264886]
[1744719576982,37.60592388,132.43,132.38,53.22852388]
[1744719577404,30.05482388,132.43,132.39,19.67482388]
[1744719577602,10.38,132.43,132.39,19.67482388]
[1744719578411,17.9312,132.43,132.39,19.67482388]
[1744719578590,37.60602388,132.43,132.39,19.67482388]
[1744719579304,37.60602388,132.43,132.39,27.22822388]
[1744719579499,10.38,132.43,132.39,27.22822388]
[1744719579698,37.60612388,132.43,132.39,19.67482388]
[1744719580099,37.60612388,132.43,132.38,7.5537]
[1744719580407,37.60612388,132.43,132.39,19.67482388]
[1744719580809,27.22662388,132.42,132.38,27.22852388]
[1744719581187,19.85060095,132.42,132.38,19.85250095]
[1744719582107,7.5518,132.42,132.38,19.85250095]
[1744719582311,30.23020095,132.43,132.38,19.85250095]
[1744719582703,12.29880095,132.42,132.37,38.50294981]
[1744719583094,12.29880095,132.42,132.38,12.29880095]
[1744719583714,7.5522,132.41,132.37,38.50294981]
[1744719584412,7.5522,132.41,132.37,26.20414886]
[1744719584595,7.5522,132.41,132.37,38.50294981]
[1744719585310,26.22280095,132.42,132.38,12.29880095]
[1744719586308,26.22280095,132.42,132.37,30.94844981]
[1744719587114,12.29880095,132.41,132.36,12.29880095]
[1744719587620,12.29880095,132.4,132.35,38.29880095]
[1744719587992,12.29880095,132.4,132.35,26.0]
[1744719588190,19.85220095,132.39,132.34,30.94844981]
[1744719588414,22.67880095,132.38,132.33,12.29880095]
[1744719589019,22.67880095,132.38,132.34,12.29880095]
[1744719590013,7.5545,132.37,132.34,12.29880095]
[1744719590891,7.5545,132.37,132.33,12.29880095]
[1744719591088,12.29880095,132.35,132.28,27.9140253]
[1744719591390,81.6,132.34,132.28,14.87954715]
[1744719591594,12.29880095,132.32,132.28,2.5807462]
[1744719591795,10.38,132.33,132.28,2.5807462]
[1744719592099,12.29880095,132.32,132.28,2.5807462]
[1744719592335,7.558,132.31,132.28,2.5807462]
[1744719592515,19.85680095,132.31,132.28,2.5807462]
[1744719593120,12.29880095,132.29,132.28,2.5807462]
[1744719594403,19.85790095,132.29,132.28,2.5807462]
[1744719595912,93.89880095,132.32,132.28,2.5807462]
[1744719596104,89.1576,132.32,132.28,14.87954715]
[1744719596518,89.1576,132.32,132.28,2.5807462]
[1744719596519,101.45640095,132.32,132.28,2.5807462]
[1744719596815,10.38,132.33,132.3,12.29880095]
[1744719599115,17.9369,132.33,132.29,19.85750095]
[1744719599422,17.9369,132.33,132.29,12.29880095]
[1744719599614,30.23570095,132.33,132.29,12.29880095]
[1744719600014,30.23570095,132.33,132.28,22.43894715]
[1744719600921,12.29880095,132.31,132.28,2.5807462]
[1744719601104,12.29880095,132.3,132.28,2.5807462]
[1744719601420,12.29880095,132.32,132.28,2.5807462]
[1744719601629,12.29880095,132.32,132.28,22.43904715]
[1744719601829,10.38,132.33,132.29,12.29880095]
[1744719602026,91.98,132.37,132.32,30.94844981]
[1744719602327,10.38,132.37,132.36,12.29880095]
[1744719602926,10.38,132.37,132.35,12.29880095]
[1744719603126,10.38,132.37,132.35,19.68530853]
[1744719604101,10.38,132.37,132.36,19.68530853]
[1744719604705,10.38,132.37,132.35,19.68530853]
[1744719605433,10.38,132.37,132.35,27.24090853]
[1744719605809,10.38,132.37,132.35,19.68530853]
[1744719607024,37.61990853,132.37,132.32,26.20674886]
[1744719607231,10.38,132.37,132.33,19.68530853]
[1744719607409,17.9346,132.37,132.34,19.68530853]
[1744719608103,19.68530853,132.35,132.3,19.68530853]